Cogmind - Beta 13 @@@ ROGUE MODE // 2024.04.17 @ 17:04:07 Player: Gold Spoon Result: Destroyed self with Rocket Launcher Performance ------------- Evolutions (0) 0 Regions Visited (1) 200 Robots Destroyed (18) 90 Value Destroyed (496) 496 Prototype IDs (2) 40 Alien Tech Used (0) 0 Bonus (0) 0 TOTAL SCORE: 826 Bonus ------- None Cogmind --------- Core Integrity 0/250 Matter 272/300 Energy 125/125 System Corruption 1% Temperature Cool (0) Movement Core (200) Ox3 Location -10/Materials Parts ------- > --- POWER (1) -------- Light Ion Engine > --- PROPULSION (2) --- (None) > --- UTILITY (2) ------ Small Storage Unit > --- WEAPON (2) ------- Rocket Launcher > --- INVENTORY (8) ---- Light Ion Engine ECM Suite Peak State ------------ > --- POWER ------------ Ion Engine > --- PROPULSION ------- Compact Wheel Compact Wheel > --- UTILITY ---------- Small Storage Unit > --- WEAPON ----------- EM Pulse Gun Light Assault Rifle > --- INVENTORY -------- Ion Engine [Rating: 6] Favorites ----------- Power Light Ion Engine Engine Light Ion Engine Propulsion Compact Wheel Wheel Compact Wheel Hover Unit Hover Unit Utility Small Storage Unit Device Sensor Array Storage Small Storage Unit Weapon Light Assault Rifle Energy Gun EM Pulse Gun Ballistic Gun Light Assault Rifle Launcher Rocket Launcher Build | -11 -10 ------- Run | Yrd Mat Slots Evolved . | . . Power . | . . Propulsion . | . . Utility . | . . Weapon . | . . Parts Attached 15 | 6 9 Power 2 | 1 1 Engine 2 | 1 1 Core . | . . Reactor . | . . Propulsion 8 | 2 6 Treads . | . . Leg . | . . Wheel 4 | 2 2 Hover 4 | . 4 Flight . | . . Utility 2 | 1 1 Device 1 | . 1 Storage 1 | 1 . Processor . | . . Hackware . | . . Protection . | . . Artifact . | . . Weapon 3 | 2 1 Energy Gun 1 | 1 . Energy Cannon . | . . Ballistic Gun 1 | 1 . Ballistic Cannon . | . . Launcher 1 | . 1 Special Weapon . | . . Impact Weapon . | . . Slashing Weapon . | . . Piercing Weapon . | . . Special Melee Weapon . | . . Unidentified Prototypes . | . . Parts Lost 5 | . 5 Power . | . . Propulsion 2 | . 2 Utility 1 | . 1 Weapon 2 | . 2 Highest Loss Streak 3 | . 3 To Critical Strikes . | . . Average Slot Usage (%) 76 | . 76 Engine 14 | . 14 Wheel 12 | . 12 Hover 9 | . 9 Device 6 | . 6 Storage 14 | . 14 Energy Gun 5 | . 5 Ballistic Gun 11 | . 11 Launcher 2 | . 2 Naked Turns . | . . Heaviest Build 13 | 13 13 Greatest Support 32 | 32 32 Greatest Overweight (x) 4 | . 4 Average Overweight (x) . | . . Largest Inventory Capacity 8 | 8 8 Average Capacity 7 | 7 8 Most Carried 6 | 5 6 Average Carried 2 | 1 2 Final Capacity 8 | 8 8 Final Carried 2 | 1 2 Class Distribution -------------------- 100% | Mutant Dominant Class ---------------- Mutant | -10/Materials Resources | -11 -10 ----------- Run | Yrd Mat Matter Collected 424 | 218 206 Remotely . | . . Salvage Created 579 | . 579 Parts 40 | . 40 Haulers Intercepted . | . . Recyclers Shooed . | . . Parts Field Recycled . | . . Retrieved Matter . | . . Parts Self-Destructed . | . . Prevented . | . . Kills | -11 -10 ------- Run | Yrd Mat Combat Hostiles Destroyed 12 | . 12 Guns 8 | . 8 AOE 4 | . 4 Classes Destroyed 6 | . 6 Worker 1 | . 1 Builder 2 | . 2 Recycler 1 | . 1 Operator 1 | . 1 Watcher 1 | . 1 Grunt 12 | . 12 Best Kill Streak 5 | . 5 Combat Bots Only 2 | . 2 Max Kills in Single Turn 2 | . 2 Gunslinging . | . . Exploded 2 | . 2 Melee . | . . Uniques/NPCs Destroyed . | . . Combat | -11 -10 -------- Run | Yrd Mat Hostile Shots Fired 78 | . 78 Missed 34 | . 34 Damage Taken 589 | . 589 Core 254 | . 254 Absorbed by Shields . | . . Core Remaining (%) 100 | 100 . Volleys Fired 74 | . 74 Largest 2 | . 2 Hottest 60 | . 60 Shots Fired 87 | . 87 Gun 82 | . 82 Cannon . | . . Launcher 5 | . 5 Special . | . . Kinetic 69 | . 69 Thermal . | . . Explosive 5 | . 5 Electromagnetic 13 | . 13 Robot Hit Streak 12 | . 12 Robot Miss Streak 4 | . 4 Penetration Max . | . . Secondary Targets . | . . Shots Hit Robots 62 | . 62 Core Hits 38 | . 38 Critical Kills . | . . Critical Parts Destroyed 2 | . 2 Critical Strikes 2 | . 2 Destroy 2 | . 2 Melee Attacks . | . . Impact . | . . Slashing . | . . Piercing . | . . Sneak Attacks . | . . Combat Hostiles . | . . Follow-up Attacks . | . . Damage Inflicted 1202 | . 1202 Guns 575 | . 575 Cannons . | . . Explosions 627 | . 627 Melee . | . . Ramming . | . . Kinetic 413 | . 413 Thermal 139 | . 139 Explosive 488 | . 488 Electromagnetic 162 | . 162 Impact . | . . Slashing . | . . Piercing . | . . Highest Corruption 1 | . 1 Average Corruption 1 | . 1 Corruption Purged . | . . Corruption Blocked . | . . Effects 5 | . 5 Message Errors 3 | . 3 Heat Flow Errors 1 | . 1 Data Loss (minor) 1 | . 1 Overload Shots . | . . Overflow Damage 5 | . 5 Projectiles . | . . Explosions 5 | . 5 Melee . | . . Knockbacks . | . . Impact . | . . Kinetic . | . . Secondary . | . . Self-Inflicted Damage 19 | . 19 Shots 1 | . 1 Rammed . | . . Targets Rammed . | . . Kicked . | . . Crushed . | . . Highest Temperature 185 | . 185 Average Temperature 26 | . 26 Received Heat Transfer 345 | . 345 Siege Activations . | . . Robots Corrupted . | . . Combat Hostiles . | . . Parts Fried . | . . Impact Corruptions . | . . Robots Melted . | . . Combat Hostiles . | . . Parts Melted 1 | . 1 Heat Transferred 200 | . 200 Parts Sabotaged . | . . Parts Stolen . | . . Parts Stripped . | . . Power Chain Reactions 2 | . 2 Alert | -11 -10 ------- Run | Yrd Mat Peak Influence 204 | . 204 Initial . | . . Average 82 | . 88 Maximum Alert Level 1 | . 1 Low Security (%) 99 | 100 98 Level 1 . | . 1 Level 2 . | . . Level 3 . | . . Level 4 . | . . Level 5 . | . . High Security . | . . Max Security . | . . Squads Dispatched 3 | . 3 Investigation 2 | . 2 Extermination . | . . Reinforcement 1 | . 1 Assault . | . . Garrison . | . . Intercept . | . . Searches Triggered . | . . Construction Impeded . | . . Haulers Reinforced . | . . Active Scanning Responses . | . . Cargo Convoy Interrupts . | . . Stealth | -11 -10 --------- Run | Yrd Mat Distress Signals 1 | . 1 Communications Jammed . | . . Distress Signals . | . . Times Spotted 17 | . 17 Peak Tracking Total 4 | . 4 Tactical Retreats . | . . Traps | -11 -10 ------- Run | Yrd Mat Traps Triggered 1 | . 1 Indirectly . | . . Trap Hack Attempts . | . . Triggered . | . . Disarmed 18 | . 18 Reprogrammed . | . . Reused . | . . Traps Extracted . | . . Installed . | . . Triggered . | . . Machines | -11 -10 ---------- Run | Yrd Mat Machines Disabled . | . . Max in Single Turn . | . . Machines Repaired . | . . Machines Dismantled . | . . Machines Sabotaged . | . . Overloaded Fab Kills . | . . Hacking | -11 -10 --------- Run | Yrd Mat Machines Accessed 4 | . 4 Terminals 4 | . 4 Fabricators . | . . Repair Stations . | . . Recycling Units . | . . Scanalyzers . | . . Garrison Access . | . . Total Hacks 16 | . 16 Successful 10 | . 10 Failed 6 | . 6 Catastrophic . | . . Database Lockouts . | . . Manual . | . . Terminals 16 | . 16 Fabricators . | . . Repair Stations . | . . Recycling Units . | . . Scanalyzers . | . . Garrison Access . | . . Terminal Hacks 10 | . 10 Robot Analysis 1 | . 1 Prototype ID Bank 1 | . 1 Branch Access Points 1 | . 1 Alert Level 2 | . 2 Locate Traps 1 | . 1 Disarm Traps 3 | . 3 Zone Layout 1 | . 1 Fabricator Hacks . | . . Repair Station Hacks . | . . Recycling Unit Hacks . | . . Scanalyzer . | . . Garrison Access Hacks . | . . Unauthorized Hacks . | . . Terminals . | . . Fabricators . | . . Repair Stations . | . . Recycling Units . | . . Scanalyzers . | . . Garrison Access . | . . Data Cores Recovered . | . . Used . | . . Hacking Detections 4 | . 4 Full Trace Events 2 | . 2 Feedback Events . | . . Feedback Blocked . | . . Robot Schematics Acquired . | . . Robots Built . | . . Authchips . | . . Time . | . . Total Robot Build Rating . | . . Part Schematics Acquired . | . . Parts Built . | . . Authchips . | . . Time . | . . Total Part Build Rating . | . . Parts Repaired . | . . Time . | . . Parts Recycled . | . . Recycled Matter . | . . Retrieved Matter . | . . Retrieved Components . | . . Parts Scanalyzed . | . . Part Schematics Acquired . | . . Parts Damaged . | . . Bothacking | -11 -10 ------------ Run | Yrd Mat Used RIF Installer . | . . Robots Hacked . | . . Non-combat . | . . Combat . | . . Robot Hacks Applied . | . . Relay Couplers Released . | . . Fabnet Peak Effective % . | . . Robots Rewired . | . . Allies Hacked . | . . Hacks Repelled . | . . Allies | -11 -10 -------- Run | Yrd Mat Total Allies . | . . Largest Group . | . . Highest-Rated Group . | . . Highest-Rated Ally . | . . Total Orders . | . . Ally Attacks . | . . Total Damage . | . . Kills . | . . Allies Corrupted . | . . Allies Melted . | . . Intel | -11 -10 ------- Run | Yrd Mat Robot Analysis Total 1 | . 1 Derelict Logs Recovered . | . . Drone Launches . | . . Drone Recoveries . | . . Exploration | -11 -10 ------------- Run | Yrd Mat Turns Passed 741 | 52 689 Spaces Moved 621 | 45 576 Core 58 | 11 47 Treads . | . . Legs . | . . Wheels 266 | 34 232 Hover 297 | . 297 Flight . | . . Fastest Speed 50 | 50 56 Average Speed 89 | 87 89 Slowest Speed 250 | 100 250 Overloaded Moves . | . . Propulsion Burnouts . | . . Robots Hopped . | . . Cave-ins Triggered . | . . Exploration Rate (%) 46 | 3 89 Regions Visited 1 Branch Regions . Pre-discovered Areas . | . . Known Exits Taken . | . . Unknown Exits Taken 1 | 1 . Scrap Searched . | . . Spaces Dug . | . . Terrain Destroyed 42 | . 42 Melee . | . . Projectile . | . . AOE 42 | . 42 Terrain Rammed . | . . Walls Destroyed . | . . Machines Disabled . | . . Actions | -11 -10 --------- Run | Yrd Mat Total 733 | 57 676 Wait 6 | . 6 Move 620 | 44 576 Hop . | . . Pick Up 14 | 7 7 Fast Attach . | . . Attach 8 | 6 2 Detach . | . . Swap 7 | . 7 Drop 4 | . 4 Fire 74 | . 74 Melee . | . . Ram . | . . Kick . | . . Crush . | . . Escape Stasis . | . . Rewire . | . . Trap . | . . Miscellaneous . | . . Route ------- -11/Scrapyard -10/Materials (discovered 5 exits: [*Mat x3] / *Min x2) History --------- Turn | Location | Event 25 | -11/Scrapyard | Discovered new exit (range 15) 53 | -11/Scrapyard | Entered Materials 257 | -10/Materials | Discovered new exit (range 7) 310 | -10/Materials | Build established: Mutant 379 | -10/Materials | Identified exit to Mines 413 | -10/Materials | Discovered new exit (range 15) 555 | -10/Materials | Core integrity fell below 50% 568 | -10/Materials | Discovered new exit (range 16) 592 | -10/Materials | Core integrity fell below 20% 646 | -10/Materials | Lost 3 parts (2n1w) 742 | -10/Materials | Destroyed self with Rocket Launcher Last Messages --------------- G-34 Mercenary destroyed. U-05 Engineer lays Concrete. U-05 Engineer builds a Wall. U-05 Engineer lays Concrete. U-05 Engineer builds a Wall. U-05 Engineer lays Concrete. Acquired 23 matter. U-05 Engineer builds a Wall. Acquired 14 matter. U-05 Engineer lays Concrete. U-05 Engineer builds a Wall. U-05 Engineer lays Concrete. U-05 Engineer builds a Wall. U-05 Engineer lays Concrete. U-05 Engineer builds a Wall. U-05 Engineer lays Concrete. G-47 Trooper destroyed. G-34 Mercenary destroyed. Sensor Array destroyed. Destroyed Sensor Array. Map ----- +----------------------------------------------------+ | | | | | | | | | ??????????????????????????????????????????????? | | ??????????????????????????????????????????????? | | ??????????????????????????????????????????????? | | ??????????????????????????????????????????????? | | ??????????????????????????????????????????????? | | ??????????????????????????????????????????????? | | ??????????????????????????????????????????????? | | ?????????????????????????????????????????###### | | ????????????????????????""???????????##### | | ????????>??????? ???????"T"???######## # | | ???????????????""????? ? ????# """ # < # "" | | ??????????????""" ???# ????# """ # # R | | ???????????????"" ???# ""???# """ + + "" | | ??????????????? ??? ""???# # # | | ????????????????" ??? "????# # ###### | | ????????????????? ?? ????# # #????? | | ?????????????????? ?? ?????######## ####?? | | ???????? # ?????! ? w ????????## # # #?? | | ???????? #### ##/############## # #?? | | ??????? = u ^ = #?? | | ??????? [%[ = % # ##?? | | ??????? %= @ ^ = ! # #??? | | ??????? = ### ########=* ###### | | ??????? ??????# # ?? # =|#! | | ???????? ##??????????# k + """ #! # """ | | ??????????????????????# ##### "Y" # # """ | | ??????????????????????# #???# + %+ """ | | ???????????????#########+######! # # | | ???????????????# ## ! # # | | ??????# ???????# ##+#?#### ####+# | | ??????# ??????# """"" ## #####% #?# # | | ??????# ??????# """"""""" # % #?# # | | ??????# ??????# """ """ # #?# # | | ??????? ?????# + #?# # | | ??????? ???????#+############+##### ! #?# # | | ??????? ###??????????## ######### # | | ??????? ??? + #! # # | | ??????? ? #??????###### # # | | ########+## #????###?#??# # """"" # | | # # ###? #??# # """""[# | | # # # """ #??# # """""%# | | # + # """ #??# # % !+ | | # # + """ #??##########+## """"" # | | # # # #??######### + """"" ### | | # # #??! #??#! =!= # # """"" ## | | # # ########### =!= + # ## | +----------------------------------------------------+ Best States ------------- Heat Dissipation 25 Energy Generation 10 Energy Capacity 250 Matter Stores 300 Matter Capacity 300 Sight Range 16 Robot Scan Range 14 Terrain Scan Density 10 Evasion (%) 53 Item Schematics ----------------- None Robot Schematics ------------------ None Fabricated ------------ Nothing Alien Tech Used ----------------- None Achievements -------------- None Challenges ------------ None Game ------ Seed RagnarokSeismicCoupler Manual? 0 Play Time 00:13:25 Cumulative 6.2 hours Start 2024.04.17 @ 16:53:21 End 2024.04.17 @ 17:04:07 Sessions 1 Manual Loads 0 Difficulty Rogue Special Mode None Game No. 7 Rogue 5 Adventurer 2 Explorer 0 Win Type - Total 0 Types 0/0/0/0/0/0/0/0/0 Lore% 16 Gallery% 10 Achievement% 13 Wizard Run 0 Options --------- Layout 1 ASCII 0 Keyboard 0 Movement Mouse Keybinds 0 Fullscreen 1 Font 24/Smallcaps Map View 50x40 Zoom Use 0% Tactical HUD 0 Map Filters NONE Filters NONE Steam 1 RUN: 3e35848b-43b6-4880-946f-6c7b9975e936